fUSD/lending_fUSD_20250521
["ID","MTS","AMOUNT","RATE_DAILY","PERIOD"]
[361820874,1747823588998,-835.65,0.0003589,5]
[361820875,1747823589017,-420.0,0.0003589,5]
[361820876,1747823589034,-632.49,0.0003589,5]
[361820877,1747823589052,-712.53,0.0003589,5]
[361820878,1747823589070,-420.0,0.0003589,5]
[361820879,1747823589088,-420.0,0.0003589,5]
[361820880,1747823589107,-420.0,0.0003589,5]
[361820881,1747823589127,-905.81,0.0003589,5]
[361820882,1747823589146,-1500.35,0.0003589,5]
[361820883,1747823589165,-913.23,0.0003589,5]
[361820884,1747823589184,-891.23,0.0003589,5]
[361820885,1747823589201,-420.0,0.0003589,5]
[361820886,1747823589219,-420.0,0.0003589,5]
[361820887,1747823589237,-420.0,0.0003589,5]
[361820888,1747823589255,-420.0,0.0003589,5]
[361820889,1747823589274,-793.59,0.0003589,5]
[361820890,1747823589293,-420.0,0.0003589,5]
[361820891,1747823589311,-532.78,0.0003589,5]
[361820892,1747823589329,-420.0,0.0003589,5]
[361820893,1747823589346,-420.0,0.0003589,5]
[361820894,1747823589363,-716.67,0.0003589,5]
[361820895,1747823589381,-431.22,0.0003589,5]
[361820896,1747823589399,-3321.89,0.0003589,5]
[361820897,1747823589417,-655.87,0.0003589,5]
[361820898,1747823589435,-420.0,0.0003589,5]
[361820899,1747823589452,-464.92,0.0003589,5]
[361820900,1747823589470,-752.46,0.0003589,5]
[361820901,1747823589487,-1164.32,0.0003589,5]
[361820902,1747823589504,-420.0,0.0003589,5]
[361820903,1747823589522,-447.46,0.0003589,5]
[361820904,1747823589539,-420.0,0.0003589,5]
[361820905,1747823589557,-970.46,0.0003589,5]
[361820906,1747823589575,-1182.51,0.0003589,5]
[361820907,1747823589592,-2566.8,0.0003589,3]
[361820908,1747823589610,-986.1,0.0003589,5]
[361820909,1747823589627,-420.0,0.0003589,5]
[361820910,1747823589644,-3544.76,0.0003589,5]
[361820911,1747823589660,-528.46,0.0003589,5]
[361820912,1747823589678,-420.0,0.0003589,5]
[361820913,1747823589694,-1116.24,0.0003589,5]
[361820914,1747823589711,-607.2,0.0003589,5]
[361820915,1747823589728,-498.41,0.0003589,5]
[361820916,1747823589746,-511.54,0.0003589,5]
[361820917,1747823589764,-420.0,0.0003589,5]
[361820918,1747823589782,-1446.26,0.0003589,5]
[361820919,1747823589799,-635.53,0.0003589,5]
[361820920,1747823589816,-420.0,0.0003589,5]
[361820921,1747823589832,-420.0,0.0003589,5]
[361820922,1747823589849,-420.0,0.0003589,5]
[361820923,1747823589867,-602.05,0.0003589,5]
[361820924,1747823589885,-420.0,0.0003589,5]
[361820925,1747823589903,-3171.93,0.0003589,5]
[361820926,1747823589920,-672.06,0.0003589,5]
[361820927,1747823589937,-1136.92,0.0003589,5]
[361820928,1747823589955,-501.87,0.0003589,5]
[361820929,1747823589972,-420.0,0.0003589,5]
[361820930,1747823589989,-960.17,0.0003589,5]
[361820931,1747823590008,-1498.01,0.0003589,5]
[361820932,1747823590024,-420.0,0.0003589,5]
[361820933,1747823590042,-420.0,0.0003589,5]
[361820934,1747823590059,-420.0,0.0003589,5]
[361820935,1747823590075,-489.93,0.0003589,5]
[361820936,1747823590094,-420.0,0.0003589,5]
[361820937,1747823590113,-1181.55,0.0003589,5]
[361820938,1747823590131,-420.0,0.0003589,5]
[361820939,1747823590150,-1634.56,0.0003589,5]
[361820940,1747823590167,-420.0,0.0003589,5]
[361820941,1747823590184,-731.06,0.0003589,5]
[361820942,1747823590200,-665.75,0.0003589,5]
[361820943,1747823590217,-420.0,0.0003589,5]
[361820944,1747823590234,-1010.87,0.0003589,5]
[361820945,1747823590251,-725.49,0.0003589,5]
[361820946,1747823590271,-1218.91,0.0003589,5]
[361820947,1747823590288,-1168.31,0.0003589,5]
[361820948,1747823590305,-1264.38,0.0003589,5]
[361820949,1747823590324,-420.0,0.0003589,5]
[361820950,1747823590342,-420.0,0.0003589,2]
[361820951,1747823590360,-584.07,0.0003589,5]
[361820952,1747823590381,-3033.08,0.0003589,5]
[361820953,1747823590399,-420.0,0.0003589,5]
[361820954,1747823590420,-420.0,0.0003589,5]
[361820955,1747823590439,-740.34,0.0003589,5]
[361820956,1747823590460,-420.0,0.0003589,5]
[361820957,1747823590479,-420.0,0.0003589,5]
[361820958,1747823590497,-420.0,0.0003589,5]
[361820959,1747823590515,-1236.73,0.0003589,5]
[361820960,1747823590534,-420.0,0.0003589,5]
[361820961,1747823590549,-718.57,0.0003589,5]
[361820962,1747823590567,-420.0,0.0003589,2]
[361820963,1747823590585,-2646.97,0.0003589,5]
[361820964,1747823590602,-420.0,0.0003589,5]
[361820965,1747823590619,-442.80750221,0.0003589,5]
[361820966,1747823590637,-3655.51,0.0003589,5]
[361820967,1747823590654,-420.0,0.0003589,5]
[361820968,1747823590672,-1194.67,0.0003589,5]
[361820969,1747823590690,-637.39,0.0003589,5]
[361820970,1747823590708,-2368.39,0.0003589,5]
[361820971,1747823590726,-932.97,0.0003589,5]
[361820972,1747823590743,-788.04,0.0003589,5]
[361820973,1747823590761,-475.79,0.0003589,5]
[361820974,1747823590781,-469.81,0.0003589,5]
[361820975,1747823590799,-420.0,0.0003589,5]
[361820976,1747823590818,-1158.88,0.0003589,5]
[361820977,1747823590836,-2693.72,0.0003589,5]
[361820978,1747823590855,-2741.78,0.0003589,5]
[361820979,1747823590873,-1351.52,0.0003589,5]
[361820980,1747823590891,-420.0,0.0003589,5]
[361820981,1747823590909,-1167.31,0.0003589,5]
[361820982,1747823590927,-1192.06,0.0003589,5]
[361820983,1747823590944,-420.0,0.0003589,5]
[361820984,1747823590961,-506.87,0.0003589,5]
[361820985,1747823590979,-664.46,0.0003589,5]
[361820986,1747823590996,-2096.4,0.0003589,5]
[361820987,1747823591013,-783.68,0.0003589,5]
[361820988,1747823591031,-1450.92,0.0003589,5]
[361820989,1747823591048,-1675.88,0.0003589,5]
[361820990,1747823591066,-420.0,0.0003589,5]
[361820991,1747823591082,-421.11,0.0003589,5]
[361820992,1747823591099,-655.43,0.0003589,5]
[361820993,1747823591116,-1330.16,0.0003589,5]
[361820994,1747823591134,-628.75,0.0003589,5]
[361820995,1747823591151,-470.23,0.0003589,5]
[361820996,1747823591169,-789.43,0.0003589,5]
[361820997,1747823591187,-2066.32,0.0003589,5]
[361820998,1747823591206,-543.38,0.0003589,5]
[361820999,1747823591222,-1884.88,0.0003589,5]
[361821000,1747823591239,-443.39,0.0003589,5]
[361821001,1747823591257,-814.52,0.0003589,5]
[361821002,1747823591275,-420.0,0.0003589,5]
[361821003,1747823591292,-468.75,0.0003589,5]
[361821004,1747823591323,-2280.59,0.0003589,5]
[361821005,1747823591340,-420.0,0.0003589,5]
[361821006,1747823591358,-420.0,0.0003589,5]
[361821007,1747823591378,-1660.08,0.0003589,5]
[361821008,1747823591395,-420.0,0.0003589,5]
[361821009,1747823591411,-420.0,0.0003589,5]
[361821010,1747823591430,-2531.44,0.0003589,5]
[361821011,1747823591448,-891.37,0.0003589,5]
[361821012,1747823591466,-1229.28,0.0003589,5]
[361821013,1747823591483,-420.0,0.0003589,5]
[361821014,1747823591500,-562.73,0.0003589,5]
[361821015,1747823591517,-499.02615878,0.0003589,5]
[361821016,1747823591535,-420.0,0.0003589,5]
[361821017,1747823591553,-639.64,0.0003589,5]
[361821018,1747823591569,-1520.14,0.0003589,5]
[361821019,1747823591587,-420.0,0.0003589,5]
[361821020,1747823591604,-2002.78,0.0003589,5]
[361821021,1747823591622,-504.03,0.0003589,5]
[361821022,1747823591638,-420.0,0.0003589,5]
[361821023,1747823591656,-420.0,0.0003589,5]
[361821024,1747823591673,-756.35,0.0003589,5]
[361821025,1747823591691,-1155.6,0.0003589,5]
[361821026,1747823591709,-449.8352835,0.0003589,5]
[361821027,1747823591728,-2487.3,0.0003589,5]
[361821028,1747823591747,-829.63,0.0003589,5]
[361821029,1747823591765,-440.4,0.0003589,5]
[361821030,1747823591784,-420.0,0.0003589,5]
[361821031,1747823591804,-420.0,0.0003589,5]
[361821032,1747823592292,-1069.06,0.0003589,5]
[361821033,1747823592303,-512.22,0.0003589,5]
[361821034,1747823592314,-1131.24,0.0003589,5]
[361821035,1747823592324,-3548.27,0.0003589,5]
[361821036,1747823592334,-531.37,0.0003589,5]
[361821037,1747823592344,-420.0,0.0003589,5]
[361821038,1747823592354,-438.38,0.0003589,5]
[361821039,1747823592365,-420.0,0.0003589,5]
[361821040,1747823592375,-836.66,0.0003589,5]
[361821041,1747823592388,-1758.59,0.0003589,5]
[361821042,1747823592398,-2244.73,0.0003589,5]
[361821043,1747823592408,-706.99,0.0003589,5]
[361821044,1747823592418,-1671.68,0.0003589,5]
[361821045,1747823592429,-1303.3,0.0003589,5]
[361821046,1747823592438,-630.7,0.0003589,5]
[361821047,1747823592448,-1546.03,0.0003589,5]
[361821048,1747823592460,-1449.1,0.0003589,5]
[361821049,1747823592472,-1084.11,0.0003589,5]
[361821050,1747823592482,-796.16,0.0003589,5]
[361821051,1747823592492,-829.47,0.0003589,5]
[361821052,1747823592502,-188.21911604,0.0003589,5]
[361821053,1747823592512,-560.22,0.0003589,5]
[361821054,1747823592522,-2061.87,0.0003589,5]
[361821055,1747823592532,-1759.24,0.0003589,5]
[361821056,1747823592543,-677.92,0.0003589,5]
[361821057,1747823592553,-420.0,0.0003589,5]
[361821058,1747823592566,-2008.9,0.0003589,5]
[361821059,1747823592576,-420.0,0.0003589,5]
[361821060,1747823592586,-603.25,0.0003589,5]
[361821061,1747823592597,-420.0,0.0003589,5]
[361821062,1747823592607,-3335.62,0.0003589,5]
[361821063,1747823592616,-794.93,0.0003589,5]
[361821064,1747823592626,-462.11,0.0003589,5]
[361821065,1747823592636,-1384.78,0.0003589,5]
[361821066,1747823592647,-3088.45,0.0003589,5]
[361821067,1747823592657,-3415.98,0.0003589,5]
[361821068,1747823592667,-475.97,0.0003589,5]
[361821069,1747823592676,-420.0,0.0003589,5]
[361821070,1747823592687,-1441.04,0.0003589,5]
[361821071,1747823592697,-1360.17,0.0003589,5]
[361821072,1747823592707,-799.95,0.0003589,5]
[361821073,1747823592716,-502.28314696,0.0003589,5]
[361821074,1747823592726,-1022.16,0.0003589,5]
[361821075,1747823592736,-2905.57,0.0003589,5]
[361821076,1747823592746,-420.0,0.0003589,5]
[361821077,1747823592756,-420.0,0.0003589,5]
[361821078,1747823592765,-2154.53,0.0003589,5]
[361821079,1747823592776,-1412.77,0.0003589,5]
[361821080,1747823592787,-1804.92,0.0003589,5]
[361821081,1747823592797,-931.82,0.0003589,5]
[361821082,1747823592806,-3820.81,0.0003589,5]
[361821083,1747823592816,-420.0,0.0003589,5]
[361821084,1747823592826,-446.52,0.0003589,5]
[361821085,1747823592836,-420.0,0.0003589,5]
[361821086,1747823592846,-3379.22,0.0003589,5]
[361821087,1747823592856,-552.29,0.0003589,5]
[361821088,1747823592865,-2204.62,0.0003589,5]
[361821089,1747823592875,-1365.61,0.0003589,5]
[361821090,1747823592885,-739.98,0.0003589,5]
[361821091,1747823592895,-1686.16,0.0003589,5]
[361821092,1747823592904,-638.15,0.0003589,5]
[361821093,1747823592915,-2851.0,0.0003589,5]
[361821094,1747823592926,-420.0,0.0003589,5]
[361821095,1747823592935,-641.93,0.0003589,5]
[361821096,1747823592946,-669.03,0.0003589,5]
[361821097,1747823592956,-1513.514558,0.0003589,5]
[361821098,1747823592965,-1056.24,0.0003589,5]
[361821099,1747823592975,-605.2,0.0003589,5]
[361821100,1747823592985,-267.05209045,0.0003589,5]
[361821101,1747823592995,-3414.72,0.0003589,5]
[361821102,1747823593005,-289.73235862,0.0003589,5]
[361821103,1747823593014,-456.44,0.0003589,5]
[361821104,1747823593024,-2738.58,0.0003589,5]
[361821105,1747823593034,-626.72,0.0003589,5]
[361821106,1747823593044,-1961.22,0.0003589,5]
[361821107,1747823593054,-4019.16,0.0003589,5]
[361821108,1747823593064,-420.0,0.0003589,5]
[361821109,1747823593073,-420.0,0.0003589,5]
[361821110,1747823593083,-420.0,0.0003589,5]
[361821111,1747823593094,-501.19,0.0003589,5]
[361821112,1747823593105,-437.02,0.0003589,5]
[361821113,1747823593115,-420.0,0.0003589,5]
[361821114,1747823593126,-3829.73,0.0003589,5]
[361821115,1747823593136,-1195.86,0.0003589,5]
[361821116,1747823593145,-1171.35,0.0003589,5]
[361821117,1747823593155,-1602.68,0.0003589,5]
[361821118,1747823593165,-1595.56,0.0003589,5]
[361821119,1747823593175,-1403.63,0.0003589,5]
[361821120,1747823593185,-420.0,0.0003589,5]
[361821121,1747823593195,-2127.07,0.0003589,5]
[361821122,1747823593207,-1620.22,0.0003589,5]
[361821123,1747823593219,-975.42,0.0003589,5]
[361821124,1747823593228,-280.32305813,0.0003589,5]
[361821125,1747823593238,-663.27,0.0003589,5]
[361821126,1747823593247,-4718.07,0.0003589,5]
[361821127,1747823593257,-1651.18,0.0003589,5]
[361821128,1747823593266,-560.95,0.0003589,5]
[361821129,1747823593276,-701.41,0.0003589,5]
[361821130,1747823593286,-950.44,0.0003589,5]
[361821131,1747823593295,-420.0,0.0003589,5]
[361821132,1747823593305,-708.42,0.0003589,5]
[361821133,1747823593314,-3358.3,0.0003589,5]
[361821134,1747823593324,-420.0,0.0003589,5]
[361821135,1747823593334,-1131.94,0.0003589,5]
[361821136,1747823593344,-3071.77,0.0003589,5]
[361821137,1747823593353,-1890.69,0.0003589,5]
[361821138,1747823593363,-2588.8,0.0003589,5]
[361821139,1747823593373,-1081.97,0.0003589,5]
[361821140,1747823593385,-447.09,0.0003589,5]
[361821141,1747823593395,-1061.79,0.0003589,5]
[361821142,1747823593404,-3165.26,0.0003589,5]
[361821143,1747823593414,-1578.73,0.0003589,5]
[361821144,1747823593425,-420.0,0.0003589,5]
[361821145,1747823593435,-437.54,0.0003589,5]
[361821146,1747823593444,-801.31,0.0003589,5]
[361821147,1747823593455,-420.0,0.0003589,5]
[361821148,1747823593468,-1117.87,0.0003589,5]
[361821149,1747823593479,-590.41,0.0003589,5]
[361821150,1747823593490,-646.24,0.0003589,5]
[361821151,1747823593499,-469.33,0.0003589,5]
[361821152,1747823593509,-1582.05,0.0003589,5]
[361821153,1747823593519,-944.65,0.0003589,5]
[361821154,1747823593530,-1388.27,0.0003589,5]
[361821155,1747823593541,-420.0,0.0003589,5]
[361821156,1747823593551,-420.0,0.0003589,5]
[361821157,1747823593561,-817.62,0.0003589,5]
[361821158,1747823593571,-1313.42,0.0003589,5]
[361821159,1747823593580,-2499.18,0.0003589,5]
[361821160,1747823593590,-2712.821305,0.0003589,5]
[361821161,1747823593601,-420.0,0.0003589,5]
[361821162,1747823593611,-591.99,0.0003589,5]
[361821163,1747823593621,-420.0,0.0003589,5]
[361821164,1747823593631,-2676.06,0.0003589,5]
[361821165,1747823593640,-420.0,0.0003589,5]
[361821166,1747823593650,-420.0,0.0003589,5]
[361821167,1747823593661,-1630.17,0.0003589,5]
[361821168,1747823593670,-2046.62,0.0003589,5]
[361821169,1747823593680,-707.44,0.0003589,5]
[361821170,1747823593689,-420.0,0.0003589,5]
[361821171,1747823593699,-524.92,0.0003589,5]
[361821172,1747823593709,-844.05,0.0003589,5]
[361821173,1747823593718,-2122.24,0.0003589,5]
[361821174,1747823593728,-603.94,0.0003589,5]
[361821175,1747823593737,-5021.23,0.0003589,5]
[361821176,1747823593748,-1529.49,0.0003589,5]
[361821177,1747823593758,-1250.7,0.0003589,5]
[361821178,1747823593768,-420.0,0.0003589,5]
[361821179,1747823593778,-1682.48,0.0003589,5]
[361821180,1747823593788,-1386.81,0.0003589,5]
[361821181,1747823593798,-730.49,0.0003589,5]
[361821182,1747823593808,-420.0,0.0003589,5]
[361821183,1747823593818,-447.9,0.0003589,5]
[361821184,1747823593827,-1324.88,0.0003589,5]
[361821185,1747823593837,-2229.66,0.0003589,5]
[361821186,1747823593847,-472.1,0.0003589,5]
[361821187,1747823593857,-434.93,0.0003589,5]
[361821188,1747823593867,-420.0,0.0003589,5]
[361821189,1747823593876,-1282.33,0.0003589,5]
[361821190,1747823593886,-444.34,0.0003589,5]
[361821191,1747823593896,-2643.47,0.0003589,5]
[361821192,1747823593906,-1343.09,0.0003589,5]
[361821193,1747823593915,-600.65,0.0003589,5]
[361821194,1747823593925,-1076.93,0.0003589,5]
[361821195,1747823593935,-316.02568373,0.0003589,5]
[361821196,1747823593944,-1416.84,0.0003589,5]
[361821197,1747823593953,-1332.5,0.0003589,5]
[361821198,1747823593964,-1392.97,0.0003589,5]
[361821199,1747823593973,-682.19,0.0003589,5]
[361821200,1747823593982,-438.34,0.0003589,5]
[361821201,1747823593992,-791.4,0.0003589,5]
[361821202,1747823594001,-1000.0,0.0003589,30]
[361821203,1747823594010,-632.83,0.0003589,5]
[361821204,1747823594020,-392.26938085,0.0003589,5]
[361821205,1747823594029,-235.14345967,0.0003589,5]
[361821206,1747823594039,-713.78,0.0003589,5]
[361821207,1747823594048,-2568.63,0.0003589,5]
[361821208,1747823594057,-420.0,0.0003589,5]
[361821209,1747823594067,-1222.57,0.0003589,5]
[361821210,1747823594076,-420.0,0.0003589,5]
[361821211,1747823594085,-1185.11,0.0003589,5]
[361821212,1747823594095,-420.0,0.0003589,5]
[361821213,1747823594105,-3400.95,0.0003589,5]
[361821214,1747823594114,-618.99,0.0003589,5]
[361821215,1747823594124,-559.3,0.0003589,5]
[361821216,1747823594134,-2592.87,0.0003589,5]
[361821217,1747823594143,-729.48,0.0003589,5]
[361821218,1747823594153,-1036.77,0.0003589,5]
[361821219,1747823594163,-912.69,0.0003589,5]
[361821220,1747823594172,-2077.17,0.0003589,5]
[361821221,1747823594182,-474.23,0.0003589,5]
[361821222,1747823594192,-633.02,0.0003589,5]
[361821223,1747823594202,-2143.32,0.0003589,5]
[361821224,1747823594212,-2433.64,0.0003589,5]
[361821225,1747823594221,-680.33,0.0003589,5]
[361821226,1747823594231,-2156.45,0.0003589,5]
[361821227,1747823594240,-1587.63,0.0003589,5]
[361821228,1747823594250,-420.0,0.0003589,5]
[361821229,1747823594260,-3338.68,0.0003589,5]
[361821230,1747823594269,-219.63314203,0.0003589,5]
[361821231,1747823594279,-2132.67,0.0003589,5]
[361821232,1747823594289,-539.66,0.0003589,5]
[361821233,1747823594298,-1108.21,0.0003589,5]
[361821234,1747823594308,-420.0,0.0003589,5]
[361821235,1747823594317,-1448.56,0.0003589,5]
[361821236,1747823594327,-420.0,0.0003589,5]
[361821237,1747823594337,-1231.09,0.0003589,5]
[361821238,1747823594346,-1449.81,0.0003589,5]
[361821239,1747823594356,-420.0,0.0003589,5]
[361821240,1747823594365,-2507.82,0.0003589,5]
[361821241,1747823594376,-527.65548403,0.0003589,5]
[361821242,1747823594388,-461.55,0.0003589,5]
[361821243,1747823594397,-2269.59,0.0003589,5]
[361821244,1747823594407,-3289.43,0.0003589,5]
[361821245,1747823594416,-1017.25,0.0003589,5]
[361821246,1747823594426,-1196.46,0.0003589,5]
[361821247,1747823594436,-420.0,0.0003589,5]
[361821248,1747823594445,-1902.38,0.0003589,5]
[361821249,1747823594455,-4528.11,0.0003589,5]
[361821250,1747823594466,-437.58,0.0003589,5]
[361821251,1747823594475,-2709.01,0.0003589,5]
[361821252,1747823594485,-934.68,0.0003589,5]
[361821253,1747823594495,-644.31,0.0003589,5]
[361821254,1747823594505,-3000.52,0.0003589,5]
[361821255,1747823594515,-2558.61,0.0003589,5]
[361821256,1747823594526,-919.21,0.0003589,5]
[361821257,1747823594536,-420.0,0.0003589,5]
[361821258,1747823594545,-3800.75,0.0003589,5]
[361821259,1747823594556,-1016.83,0.0003589,5]
[361821260,1747823594566,-1283.86,0.0003589,5]
[361821261,1747823594576,-5012.54,0.0003589,5]
[361821262,1747823594585,-4257.36,0.0003589,5]
[361821263,1747823594595,-420.0,0.0003589,5]
[361821264,1747823594605,-420.0,0.0003589,5]
[361821265,1747823594616,-2661.46,0.0003589,5]
[361821266,1747823594625,-420.0,0.0003589,5]
[361821267,1747823594635,-420.0,0.0003589,5]
[361821268,1747823594644,-7175.57,0.0003589,5]
[361821269,1747823594656,-1626.84,0.0003589,5]
[361821270,1747823594665,-461.42903571,0.0003589,5]
[361821271,1747823594677,-7478.95,0.0003589,5]
[361821272,1747823594687,-1297.42,0.0003589,5]
[361821273,1747823594698,-1050.66,0.0003589,5]
[361821274,1747823594707,-459.54,0.0003589,5]
[361821275,1747823594718,-3186.22,0.0003589,5]
[361821276,1747823594728,-1603.59,0.0003589,5]
[361821277,1747823594738,-1706.72,0.0003589,5]
[361821278,1747823594748,-1118.07,0.0003589,5]
[361821279,1747823594758,-3456.53,0.0003589,5]
[361821280,1747823594770,-1819.17,0.0003589,5]
[361821281,1747823594781,-477.62,0.0003589,5]
[361821282,1747823594791,-500.47,0.0003589,5]
[361821283,1747823594801,-1245.18,0.0003589,5]
[361821284,1747823594811,-864.67,0.0003589,5]
[361821285,1747823594821,-1044.28,0.0003589,5]
[361821286,1747823594831,-485.82,0.0003589,5]
[361821287,1747823594841,-483.53,0.0003589,5]
[361821288,1747823594851,-2279.99,0.0003589,5]
[361821289,1747823594862,-1093.42,0.0003589,5]
[361821290,1747823594873,-773.61,0.0003589,5]
[361821291,1747823594883,-1587.6,0.0003589,5]
[361821292,1747823594893,-2000.0,0.0003589,5]
[361821293,1747823594903,-3023.35,0.0003589,5]
[361821294,1747823594915,-2681.61,0.0003589,5]
[361821295,1747823594925,-420.0,0.0003589,5]
[361821296,1747823594936,-3921.51,0.0003589,5]
[361821297,1747823594946,-774.74,0.0003589,5]
[361821298,1747823594956,-11832.32,0.0003589,5]
[361821299,1747823594967,-1140.49,0.0003589,5]
[361821300,1747823594976,-716.85,0.0003589,5]
[361821301,1747823594986,-1451.14,0.0003589,5]
[361821302,1747823594996,-1980.16,0.0003589,5]
[361821303,1747823595006,-4169.63,0.0003589,5]
[361821304,1747823595016,-614.3,0.0003589,5]
[361821305,1747823595025,-478.74,0.0003589,5]
[361821306,1747823595035,-1064.83,0.0003589,5]
[361821307,1747823595045,-1031.8,0.0003589,5]
[361821308,1747823595055,-2328.19,0.0003589,5]
[361821309,1747823595064,-324.5483511,0.0003589,5]
[361821310,1747823595074,-2178.09,0.0003589,5]
[361821311,1747823595083,-595.22,0.0003589,5]
[361821312,1747823595093,-420.0,0.0003589,5]
[361821313,1747823595103,-12779.36,0.0003589,5]
[361821314,1747823595113,-3199.69,0.0003589,5]
[361821315,1747823595123,-464.93,0.0003589,5]
[361821316,1747823595132,-1385.93,0.0003589,5]
[361821317,1747823595142,-3624.48,0.0003589,5]
[361821318,1747823595152,-1592.89,0.0003589,5]
[361821319,1747823595162,-420.0,0.0003589,5]
[361821320,1747823595172,-420.0,0.0003589,5]
[361821321,1747823595182,-3239.25,0.0003589,5]
[361821322,1747823595192,-420.0,0.0003589,5]
[361821323,1747823595202,-4626.37,0.0003589,5]
[361821324,1747823595212,-1377.38,0.0003589,5]
[361821325,1747823595222,-613.45,0.0003589,5]
[361821326,1747823595231,-2100.46,0.0003589,5]
[361821327,1747823595241,-232873.01,0.0003589,5]
[361821328,1747823595250,-420.0,0.0003589,5]
[361821329,1747823595259,-2870.6,0.0003589,5]
[361821330,1747823595269,-420.0,0.0003589,5]
[361821331,1747823595279,-420.0,0.0003589,5]
[361821332,1747823595289,-544.44,0.0003589,5]
[361821333,1747823595299,-2582.79,0.0003589,5]
[361821334,1747823595308,-1455.85,0.0003589,5]
[361821335,1747823595318,-3817.8,0.0003589,5]
[361821336,1747823595327,-1140.2,0.0003589,5]
[361821337,1747823595338,-1001.8,0.0003589,5]
[361821338,1747823595348,-814.19,0.0003589,5]
[361821339,1747823595357,-24741.12,0.0003589,5]
[361821340,1747823595369,-746.18,0.0003589,5]
[361821341,1747823595381,-1332.61,0.0003589,5]
[361821342,1747823595391,-847.4,0.0003589,5]
[361821343,1747823595401,-6653.58,0.0003589,5]
[361821344,1747823595411,-2208.36,0.0003589,5]
[361821345,1747823595422,-509.45549393,0.0003589,5]
[361821346,1747823595432,-3466.92,0.0003589,5]
[361821347,1747823595442,-756.27,0.0003589,5]
[361821348,1747823595451,-2780.98,0.0003589,5]
[361821349,1747823595464,-3727.2,0.0003589,5]
[361821350,1747823595474,-43430.9,0.0003589,5]
[361821351,1747823595484,-4377.12,0.0003589,5]
[361821352,1747823595495,-662.42,0.0003589,5]
[361821353,1747823595506,-1355.36,0.0003589,5]
[361821354,1747823595517,-1646.2,0.0003589,5]
[361821355,1747823595882,-420.0,0.0003589,5]
[361821356,1747823595896,-3823.68,0.0003589,5]
[361821357,1747823595907,-420.0,0.0003589,5]
[361821358,1747823595918,-1929.18,0.0003589,5]
[361821359,1747823595929,-692.1,0.0003589,5]
[361821360,1747823595940,-1375.19,0.0003589,5]
[361821361,1747823595950,-27430.46,0.0003589,5]
[361821362,1747823595960,-694.13,0.0003589,5]
[361821363,1747823595970,-2620.97,0.0003589,5]
[361821364,1747823595980,-1035.87,0.0003589,5]
[361821365,1747823595991,-8392.23,0.0003589,5]
[361821366,1747823596002,-3873.45,0.0003589,5]
[361821367,1747823596012,-831.34,0.0003589,5]
[361821368,1747823596023,-683.8,0.0003589,5]
[361821369,1747823596033,-420.0,0.0003589,5]
[361821370,1747823596044,-648.18,0.0003589,5]
[361821371,1747823596054,-420.0,0.0003589,5]
[361821372,1747823596064,-2236.59,0.0003589,5]
[361821373,1747823596075,-333.94,0.0003589,5]